Cogmind - Beta 17 @@@ ROGUE MODE // 2026.08.07 @ 16:58:07 Player: aperiodic Result: Destroyed by AM-Y75(R) with Subdweller Laser Performance ------------- Evolutions (0) 0 Regions Visited (3) 600 Robots Destroyed (23) 115 Value Destroyed (435) 435 Prototype IDs (0) 0 Alien Tech Used (0) 0 Bonus (0) 0 TOTAL SCORE: 1150 Bonus ------- None Cogmind --------- Core Integrity 0/250 Matter 94/300 Energy 23/100 System Corruption 0% Temperature Cool (6) Movement Rolling (135) Ox3 Location -10/Subcaves Parts ------- > --- POWER (1) -------- (None) > --- PROPULSION (2) --- Wheel Compact Wheel > --- UTILITY (2) ------ Huge Storage Unit > --- WEAPON (2) ------- EM Pulse Gun > --- INVENTORY (25) --- Light Treads Wheel Compact Wheel Hover Unit Flight Unit Medium Storage Unit Structural Scanner Experimental Sensor Array Seismic Detector Light Assault Rifle Light Assault Rifle Grenade Launcher Mining Laser Peak State ------------ > --- POWER ------------ Light Nuclear Core > --- PROPULSION ------- Wheel Compact Wheel > --- UTILITY ---------- Huge Storage Unit > --- WEAPON ----------- Subdweller Laser Bore Cannon > --- INVENTORY -------- Light Ion Engine Light Treads Light Treads Light Treads Wheel Wheel Compact Wheel Hover Unit Flight Unit Medium Storage Unit Structural Scanner Experimental Sensor Array Seismic Detector EM Pulse Gun Small Laser Light Assault Rifle Light Assault Rifle Light Cannon Grenade Launcher Mining Laser Explosive Trap [Rating: 15] Favorites ----------- Power Light Nuclear Core Engine Light Ion Engine Power Core Light Nuclear Core Propulsion Wheel Treads Light Treads Wheel Wheel Utility Huge Storage Unit Device Seismic Detector Storage Huge Storage Unit Weapon Assault Rifle Energy Gun Small Laser Ballistic Gun Assault Rifle Ballistic Cannon Bore Cannon Build | -11 -10 -10 -10 ------- Run | Yrd Mat Min Sub Slots Evolved . | . . . . Power . | . . . . Propulsion . | . . . . Utility . | . . . . Weapon . | . . . . Parts Attached 23 | 8 8 2 5 Power 5 | 1 2 1 1 Engine 4 | 1 2 . 1 Core 1 | . . 1 . Reactor . | . . . . Propulsion 8 | 2 4 1 1 Treads 3 | . 3 . . Leg . | . . . . Wheel 5 | 2 1 1 1 Hover . | . . . . Flight . | . . . . Utility 4 | 2 2 . . Device 2 | 1 1 . . Storage 2 | 1 1 . . Processor . | . . . . Hackware . | . . . . Protection . | . . . . Artifact . | . . . . Weapon 6 | 3 . . 3 Energy Gun 3 | 2 . . 1 Energy Cannon . | . . . . Ballistic Gun 1 | 1 . . . Ballistic Cannon 2 | . . . 2 Launcher . | . . . . Special Weapon . | . . . . Impact Weapon . | . . . . Slashing Weapon . | . . . . Piercing Weapon . | . . . . Special Melee Weapon . | . . . . Unidentified Prototypes . | . . . . Parts Lost 11 | . . . 11 Power 2 | . . . 2 Propulsion 3 | . . . 3 Utility 1 | . . . 1 Weapon 5 | . . . 5 Highest Loss Streak 9 | . . . 9 To Critical Strikes 1 | . . . 1 Average Backups 17 | 3 12 19 20 Power 1 | . 1 1 . Propulsion 7 | 1 5 7 7 Utility 3 | . 2 3 4 Weapon 5 | . 3 6 7 Tool/Special . | . . . . Unused Backups 10 | . . . 10 Power . | . . . . Propulsion 2 | . . . 2 Utility 4 | . . . 4 Weapon 4 | . . . 4 Tool/Special . | . . . . Average Slot Usage (%) 95 | . 100 100 87 Engine 6 | . 14 8 . Core 6 | . . 5 12 Treads 3 | . 7 1 2 Wheel 24 | . 20 26 25 Device 10 | . 14 14 4 Storage 14 | . 14 14 14 Energy Gun 13 | . 14 14 13 Ballistic Gun 13 | . 14 14 11 Peak Build Rating 15 | 7 8 12 15 Average Rating 10 | 5 7 10 11 On Entrance 6 | . 7 8 12 Avg Prop Armor Cover (%) . | . . . . Naked Turns . | . . . . Heaviest Build 98 | 14 89 89 98 Greatest Support 40 | 20 40 26 40 Greatest Overweight (x) 6 | . 4 3 6 Average Overweight (x) 2 | . 2 3 2 Largest Inventory Capacity 25 | 8 25 25 25 Average Capacity 24 | 6 24 25 25 Most Carried 25 | 7 17 25 24 Average Carried 18 | 3 12 21 22 Final Capacity 25 | 8 25 25 25 Final Carried 24 | 7 17 24 13 Class Distribution -------------------- 100% | Mutant Dominant Class ---------------- Mutant | -10/Materials Mutant | -10/Mines Mutant | -10/Subcaves Resources | -11 -10 -10 -10 ----------- Run | Yrd Mat Min Sub Matter Collected 725 | 267 315 80 63 Remotely . | . . . . Salvage Created 540 | 85 261 94 100 Parts 52 | 9 26 8 9 Haulers Intercepted 1 | . 1 . . Recyclers Shooed 1 | . . 1 . Parts Field Recycled . | . . . . Retrieved Matter . | . . . . Parts Self-Destructed 8 | . . . 8 Prevented . | . . . . Parts Restored . | . . . . Kills | -11 -10 -10 -10 ------- Run | Yrd Mat Min Sub Combat Hostiles Destroyed 17 | . 11 1 5 Guns 14 | . 11 1 2 Cannons 1 | . . . 1 AOE 2 | . . . 2 Classes Destroyed 7 | 2 3 1 1 Worker 1 | . . 1 . Tunneler 3 | 2 . 1 . Hauler 1 | . 1 . . Recycler 1 | 1 . . . Swarmer 9 | . 9 . . Grunt 3 | . 2 1 . Subdweller 5 | . . . 5 Best Kill Streak 3 | 3 3 1 2 Combat Bots Only 3 | . 3 1 2 Max Kills in Single Turn 2 | 1 2 1 1 Gunslinging 1 | . 1 . . Exploded 1 | . . . 1 Melee . | . . . . Uniques/NPCs Destroyed . | . . . . Combat | -11 -10 -10 -10 -------- Run | Yrd Mat Min Sub Hostile Shots Fired 127 | . 48 5 74 Missed 35 | . 14 . 21 Hits 92 | . 34 5 53 Projectile 92 | . 34 5 53 Critical Strikes 1 | . . . 1 Damage Taken 1482 | . 302 73 1107 Core 268 | . 31 . 237 Absorbed by Shields . | . . . . Core Remaining (%) 100 | 100 . . . Volleys Fired 83 | 5 29 10 39 Largest 2 | 2 2 2 2 Hottest 90 | 60 60 60 90 Shots Fired 135 | 10 57 20 48 Gun 105 | 10 57 20 18 Cannon 30 | . . . 30 Launcher . | . . . . Special . | . . . . Kinetic 77 | 5 29 10 33 Thermal 53 | 5 28 10 10 Explosive . | . . . . Electromagnetic 5 | . . . 5 Robot Hit Streak 27 | 6 9 11 27 Robot Miss Streak 4 | 1 4 2 3 Penetration Max . | . . . . Secondary Targets 1 | . 1 . . Max Gunslinging Chain 1 | . 1 . . Shots Hit Robots 91 | 6 32 14 39 Core Hits 30 | 4 15 5 6 Critical Kills . | . . . . Critical Parts Destroyed 1 | . 1 . . Critical Strikes 10 | . 1 . 9 Destroy 10 | . 1 . 9 Melee Attacks . | . . . . Impact . | . . . . Slashing . | . . . . Piercing . | . . . . Sneak Attacks . | . . . . Combat Hostiles . | . . . . Follow-up Attacks . | . . . . Damage Inflicted 1266 | 65 370 163 668 Guns 794 | 65 370 163 196 Cannons 472 | . . . 472 Explosions . | . . . . Melee . | . . . . Ramming . | . . . . Kinetic 765 | 24 169 77 495 Thermal 446 | 41 201 86 118 Explosive . | . . . . Electromagnetic 55 | . . . 55 Impact . | . . . . Slashing . | . . . . Piercing . | . . . . Highest Corruption . | . . . . Average Corruption . | . . . . Corruption Purged . | . . . . Corruption Blocked . | . . . . Overload Shots . | . . . . Overflow Damage . | . . . . Projectiles . | . . . . Explosions . | . . . . Melee . | . . . . Knockbacks 9 | . . . 9 Impact . | . . . . Kinetic 9 | . . . 9 Secondary . | . . . . Self-Inflicted Damage . | . . . . Shots . | . . . . Rammed . | . . . . Targets Rammed . | . . . . Kicked . | . . . . Crushed . | . . . . Highest Temperature 45 | . 18 45 2 Average Temperature 18 | . 15 27 2 Received Heat Transfer 405 | . 42 45 318 Siege Activations . | . . . . Martial Activations . | . . . . Shielding Activations . | . . . . Robots Disrupted . | . . . . Combat Hostiles . | . . . . Robots Corrupted . | . . . . Combat Hostiles . | . . . . Parts Fried . | . . . . Impact Corruptions . | . . . . Robots Melted . | . . . . Combat Hostiles . | . . . . Parts Melted 1 | . . . 1 Heat Transferred 950 | 100 450 200 200 Parts Sabotaged . | . . . . Parts Stolen . | . . . . Parts Stripped . | . . . . Power Chain Reactions . | . . . . Alert | -11 -10 -10 -10 ------- Run | Yrd Mat Min Sub Maximum Alert Level . | . . . . Low Security (%) 100 | 100 100 100 . Level 1 . | . . . . Level 2 . | . . . . Level 3 . | . . . . Level 4 . | . . . . Level 5 . | . . . . High Security . | . . . . Max Security . | . . . . Peak Influence 130 | 10 130 44 . Initial 44 | . . 44 . Average 29 | 1 71 6 . Influence Increases 390 | 15 320 55 . Destroy 0b10 Robot/C 240 | . 220 20 . Destroy 0b10 Robot/NC 30 | 15 5 10 . Destroy Leader 42 | . 32 10 . Destroy Structure 3 | . 3 . . Lose Combat Pursuer 75 | . 60 15 . Influence Decreases 390 | 15 206 169 . Entered New Map 70 | . . 70 . Time Decay 320 | 15 206 99 . Squads Dispatched . | . . . . Investigation . | . . . . Extermination . | . . . . Reinforcement . | . . . . Assault . | . . . . Garrison . | . . . . Intercept . | . . . . Searches Triggered . | . . . . Construction Impeded . | . . . . Haulers Reinforced . | . . . . Active Scanning Responses . | . . . . Cargo Convoy Interrupts . | . . . . Stealth | -11 -10 -10 -10 --------- Run | Yrd Mat Min Sub Distress Signals 1 | . 1 . . Communications Jammed . | . . . . Distress Signals . | . . . . Times Spotted 23 | . 16 1 6 Peak Tracking Total 5 | . 5 2 3 Tactical Retreats 3 | . 2 1 . Traps | -11 -10 -10 -10 ------- Run | Yrd Mat Min Sub Traps Triggered . | . . . . Indirectly . | . . . . Trap Hack Attempts . | . . . . Triggered . | . . . . Disarmed . | . . . . Reprogrammed . | . . . . Reused 3 | . . . 3 Traps Extracted . | . . . . Installed 4 | . . . 4 Triggered . | . . . . Most Traps Carried 4 | . . 4 4 Machines | -11 -10 -10 -10 ---------- Run | Yrd Mat Min Sub Machines Disabled . | . . . . Max in Single Turn . | . . . . Machines Repaired . | . . . . Machines Dismantled . | . . . . Machines Sabotaged . | . . . . Overloaded Fab Kills . | . . . . Hacking | -11 -10 -10 -10 --------- Run | Yrd Mat Min Sub Machines Accessed . | . . . . Terminals . | . . . . Fabricators . | . . . . Repair Stations . | . . . . Recycling Units . | . . . . Scanalyzers . | . . . . Garrison Access . | . . . . Total Hacks . | . . . . Successful . | . . . . Failed . | . . . . Catastrophic . | . . . . Database Lockouts . | . . . . Manual . | . . . . Terminals . | . . . . Fabricators . | . . . . Repair Stations . | . . . . Recycling Units . | . . . . Scanalyzers . | . . . . Garrison Access . | . . . . Terminal Hacks . | . . . . Fabricator Hacks . | . . . . Repair Station Hacks . | . . . . Recycling Unit Hacks . | . . . . Scanalyzer . | . . . . Garrison Access Hacks . | . . . . Unauthorized Hacks . | . . . . Terminals . | . . . . Fabricators . | . . . . Repair Stations . | . . . . Recycling Units . | . . . . Scanalyzers . | . . . . Garrison Access . | . . . . Data Cores Recovered . | . . . . Used . | . . . . Hacking Detections . | . . . . Full Trace Events . | . . . . Feedback Events . | . . . . Feedback Blocked . | . . . . Robot Schematics Acquired . | . . . . Robots Built . | . . . . Authchips . | . . . . Time . | . . . . Total Robot Build Rating . | . . . . Part Schematics Acquired . | . . . . Parts Built . | . . . . Authchips . | . . . . Time . | . . . . Total Part Build Rating . | . . . . Part Studies Acquired . | . . . . Parts Repaired . | . . . . Time . | . . . . Parts Recycled . | . . . . Recycled Matter . | . . . . Retrieved Matter . | . . . . Retrieved Components . | . . . . Parts Scanalyzed . | . . . . Part Schematics Acquired . | . . . . Parts Damaged . | . . . . Bothacking | -11 -10 -10 -10 ------------ Run | Yrd Mat Min Sub Used RIF Installer . | . . . . Robots Hacked . | . . . . Non-combat . | . . . . Combat . | . . . . Robot Hacks Applied . | . . . . Relay Couplers Released . | . . . . Fabnet Peak Effective % . | . . . . Robots Rewired . | . . . . Allies Hacked . | . . . . Hacks Repelled . | . . . . Allies | -11 -10 -10 -10 -------- Run | Yrd Mat Min Sub Total Allies . | . . . . Largest Group . | . . . . Highest-Rated Group . | . . . . Highest-Rated Ally . | . . . . Total Orders . | . . . . Ally Attacks . | . . . . Total Damage . | . . . . Kills . | . . . . Allies Corrupted . | . . . . Allies Melted . | . . . . Intel | -11 -10 -10 -10 ------- Run | Yrd Mat Min Sub Active Infowar (turns) 1629 | 10 525 841 253 Seismic 1629 | 10 525 841 253 Robot Analysis Total . | . . . . Derelict Logs Recovered 2 | . . 1 1 Drone Launches . | . . . . Drone Recoveries . | . . . . Exploration | -11 -10 -10 -10 ------------- Run | Yrd Mat Min Sub Turns Passed 2185 | 83 525 841 736 Spaces Moved 1137 | 57 233 463 384 Core 1 | 1 . . . Treads 8 | . 2 . 6 Legs . | . . . . Wheels 1128 | 56 231 463 378 Hover . | . . . . Flight . | . . . . Fastest Speed 50 | 50 80 135 135 Average Speed 132 | 79 133 135 138 Slowest Speed 320 | 80 320 135 320 Overloaded Moves . | . . . . Propulsion Burnouts . | . . . . Robots Hopped . | . . . . Potential Cave-ins . | . . . . Cave-ins Triggered . | . . . . Exploration Rate (%) 37 | 4 49 73 22 Regions Visited 3 Branch Regions 2 Pre-discovered Areas . | . . . . Known Exits Taken . | . . . . Unknown Exits Taken 3 | 1 1 1 . Scrap Searched 2 | . . 2 . Spaces Dug . | . . . . Terrain Destroyed 5 | . . . 5 Melee . | . . . . Projectile 5 | . . . 5 AOE . | . . . . Terrain Rammed . | . . . . Walls Destroyed . | . . . . Machines Disabled . | . . . . Actions | -11 -10 -10 -10 --------- Run | Yrd Mat Min Sub Total 1665 | 80 383 659 543 Wait 359 | 4 90 170 95 Move 1134 | 56 232 462 384 Hop . | . . . . Pick Up 25 | 7 9 8 1 Fast Attach 7 | 7 . . . Attach 12 | . . 2 10 Detach 4 | . . 2 2 Swap 28 | 1 20 3 4 Drop 9 | . 3 2 4 Fire 83 | 5 29 10 39 Melee . | . . . . Ram . | . . . . Kick . | . . . . Crush . | . . . . Escape Stasis . | . . . . Rewire . | . . . . Trap 4 | . . . 4 Miscellaneous . | . . . . Route ------- -11/Scrapyard -10/Materials (discovered 3 exits: [*Mat] / [*Min] / [*Sub]) -10/Mines (discovered 2 exits: [*Mat] / [*Sub]) -10/Subcaves (discovered 1 exit: [*Mat]) History --------- Turn | Location | Event 14 | -11/Scrapyard | Discovered new exit (range 16) 84 | -11/Scrapyard | Entered Materials 153 | -10/Materials | Discovered new exit (range 7) 306 | -10/Materials | Build established: Mutant 346 | -10/Materials | Discovered new exit (range 8) 369 | -10/Materials | Discovered new exit (range 13) 609 | -10/Materials | Entered Mines 630 | -10/Mines | Learned Materials security intel 693 | -10/Mines | A weapon hastily lodged in a ceiling crevice suddenly fell to the ground 747 | -10/Mines | Found a damaged Exp. Sensor Array with a note attached 749 | -10/Mines | Found Prototype Device 1145 | -10/Mines | Found a hidden stash of uninstalled traps 1207 | -10/Mines | Discovered new exit (range 11) 1443 | -10/Mines | Discovered new exit (range 6) 1450 | -10/Mines | Entered Subcaves 1556 | -10/Subcaves | Learned location of 1 exit from Materials 2073 | -10/Subcaves | Discovered new exit (range 13) 2107 | -10/Subcaves | Disturbed a concealed Subdweller 2114 | -10/Subcaves | Core integrity fell below 50% 2119 | -10/Subcaves | Disturbed a concealed Subdweller 2142 | -10/Subcaves | Core integrity fell below 20% 2186 | -10/Subcaves | Destroyed by AM-Y75(R) with Subdweller Laser Last Messages --------------- 02126_ Sub. Power Source melted. 02126_ U7-FVF(R) destroyed. 02130_ AM-Y75(R) affixes Scrap Shield Fragment to Scrap Shield. 02130_ LM-Z7J(R) affixes Scrap Shield Fragment to Scrap Shield. 02133_ Sub. Laser destroyed. 02134_ AM-Y75(R) knocked back. 02136_ LM-Z7J(R) knocked back. 02139_ Lgt. Ion Engine destroyed. 02140_ LM-Z7J(R) knocked back. 02143_ Lgt. Treads destroyed. 02149_ LM-Z7J(R) affixes Scrap Shield Fragment to Scrap Shield. 02154_ LM-Z7J(R) destroyed. 02157_ Lgt. Cannon destroyed. 02162_ Dropped Explosive Trap. 02163_ Installed Explosive Trap. 02184_ Critical hit (Destroy). 02184_ Sml. Laser destroyed. Map ----- +----------------------------------------------------+ | ??????????????????????????????????????????????? | | ??????????????????????????????????????????????? | | ??????????????????????????????????????????????? | | ??????????????????????????????????????????????? | | ??????????????????????????????????????????????? | | ??????????????????????????????????????????????? | | ??????????????????????????????????????????????? | | ???????????????????????